Cogmind - Beta 14 @@@ ROGUE MODE // 2024.09.08 @ 13:21:40 Player: Lunace Result: Destroyed by M Guard with Graviton Cannon Performance ------------- Evolutions (9) 4500 Regions Visited (20) 4000 Robots Destroyed (115) 575 Value Destroyed (2830) 2830 Prototype IDs (66) 1320 Alien Tech Used (0) 0 Bonus (12515) 12515 TOTAL SCORE: 25740 Bonus ------- High Alert Combat Kills 25 Follower Combat Kills 190 Aligned with FarCom 300 Met Warlord at Base 500 MAIN.C Attacked Warlord 500 Met Warlord at Research 2000 Invited to Help at Command 2000 Met MAIN.C 5000 Met Warlord at Command 2000 Cogmind --------- Core Integrity 0/1600 Matter 300/300 Energy 100/100 System Corruption 30% Temperature Cool (0) Movement Core (50) Location -1/Command Parts ------- > --- POWER (2) -------- (None) > --- PROPULSION (8) --- (None) > --- UTILITY (13) ----- (None) > --- WEAPON (2) ------- (None) > --- INVENTORY (5) ---- (None) Peak State ------------ > --- POWER ------------ Light Quantum Reactor Light Quantum Reactor > --- PROPULSION ------- Impulse Thruster Array Impulse Thruster Array Impulse Thruster Array Cooled Q-thruster Cooled Q-thruster > --- UTILITY ---------- Small Storage Unit Superbattery Advanced Melee Analysis Suite Advanced Melee Analysis Suite Experimental Core Analyzer Experimental Transmission Jammer Experimental Reaction Control System Advanced Phase Shifter Advanced Cloaking Device Centrium Light Armor Plating Centrium Light Armor Plating Advanced Hacking Suite Improved System Shield > --- WEAPON ----------- Enhanced Force Lance > --- INVENTORY -------- Stasis Canceller Improved Plasma Cutter Enhanced Force Lance [Rating: 193] Favorites ----------- Power Light Quantum Reactor Engine Improved Ion Engine Power Core Enhanced Nuclear Core Reactor Light Quantum Reactor Propulsion Field Propulsion Drive Treads Light Treads Leg Aluminum Leg Wheel Wheel Flight Unit Field Propulsion Drive Utility Advanced Hacking Suite Device Structural Scanner Storage Small Storage Unit Processor Advanced Melee Analysis Suite Hackware Advanced Hacking Suite Protection Centrium Light Armor Plating Weapon Enhanced Force Lance Energy Gun Medium Laser Energy Cannon Vortex Driver Ballistic Gun Gauss Rifle Launcher Grenade Launcher Special Weapon Improved Plasma Cutter Impact Weapon Gravity Flail Slashing Weapon Greatsword Piercing Weapon Enhanced Force Lance Special Melee Weapon Improved Datajack Build | -11 -10 -10 -9 -9 -9 -8 -8 -7 -7 -7 -7 -5 -5 -5 -4 -4 -3 -2 -1 -1 ------- Run | Yrd Mat Min Mat Min Exi Min Mat Fac Sto Rec Scr Fac Upp War Pro Fac Res Res Acc Com Slots Evolved 18 | . . . 2 . . . 2 2 . . . 4 . . . 2 2 2 2 . Power 1 | . . . . . . . . . . . . 1 . . . . . . . . Propulsion 6 | . . . 1 . . . 1 . . . . 2 . . . 2 . . . . Utility 11 | . . . 1 . . . 1 2 . . . 1 . . . . 2 2 2 . Weapon . | . . . . . . . . . . . . . . . . . . . . . Parts Attached 187 | 7 1 . 10 2 . 3 21 23 7 7 . 31 . 9 1 12 13 29 2 9 Power 24 | 1 1 . 1 . . . 4 4 . 1 . 3 . 4 . 1 2 2 . . Engine 11 | 1 1 . 1 . . . 4 1 . . . 2 . 1 . . . . . . Core 6 | . . . . . . . . 3 . 1 . 1 . 1 . . . . . . Reactor 7 | . . . . . . . . . . . . . . 2 . 1 2 2 . . Propulsion 49 | 2 . . 5 . . . 6 8 2 1 . 10 . . . 4 5 6 . . Treads 7 | 2 . . 1 . . . 4 . . . . . . . . . . . . . Leg 4 | . . . 3 . . . 1 . . . . . . . . . . . . . Wheel 2 | . . . 1 . . . 1 . . . . . . . . . . . . . Hover . | . . . . . . . . . . . . . . . . . . . . . Flight 36 | . . . . . . . . 8 2 1 . 10 . . . 4 5 6 . . Utility 77 | 2 . . 4 . . 1 6 5 3 5 . 13 . 2 1 7 4 16 2 6 Device 44 | 1 . . 2 . . 1 1 1 2 4 . 7 . 1 . 5 1 13 2 3 Storage 4 | 1 . . 1 . . . . 1 . . . . . . . . . . . 1 Processor 9 | . . . . . . . 1 1 . . . 2 . 1 . . 3 1 . . Hackware 13 | . . . . . . . 2 2 . . . 4 . . 1 2 . 1 . 1 Protection 7 | . . . 1 . . . 2 . 1 1 . . . . . . . 1 . 1 Artifact . | . . . . . . . . . . . . . . . . . . . . . Weapon 37 | 2 . . . 2 . 2 5 6 2 . . 5 . 3 . . 2 5 . 3 Energy Gun 7 | 2 . . . 1 . . 3 . . . . . . 1 . . . . . . Energy Cannon 2 | . . . . . . . . . . . . . . 2 . . . . . . Ballistic Gun 2 | . . . . . . 1 1 . . . . . . . . . . . . . Ballistic Cannon . | . . . . . . . . . . . . . . . . . . . . . Launcher 6 | . . . . 1 . 1 . 1 1 . . 2 . . . . . . . . Special Weapon 2 | . . . . . . . . . . . . . . . . . . 1 . 1 Impact Weapon 1 | . . . . . . . . . . . . . . . . . . 1 . . Slashing Weapon 8 | . . . . . . . 1 4 1 . . 2 . . . . . . . . Piercing Weapon 8 | . . . . . . . . . . . . 1 . . . . 2 3 . 2 Special Melee Weapon 1 | . . . . . . . . 1 . . . . . . . . . . . . Unidentified Prototypes 23 | . . . . . . . 2 . 1 . . 4 . 5 . . 1 10 . . Parts Lost 42 | . . . 1 2 . . 7 1 . 2 . . . . 1 4 . . . 24 Power 4 | . . . . . . . 2 . . . . . . . . . . . . 2 Propulsion 12 | . . . . . . . 3 1 . 2 . . . . . 1 . . . 5 Utility 20 | . . . 1 . . . 2 . . . . . . . 1 2 . . . 14 Weapon 6 | . . . . 2 . . . . . . . . . . . 1 . . . 3 Highest Loss Streak 19 | . . . 1 2 . . 5 1 . 2 . . . . 1 3 . . . 19 To Critical Strikes . | . . . . . . . . . . . . . . . . . . . . . Average Slot Usage (%) 87 | . 100 100 92 99 100 98 85 88 92 79 84 90 . 98 97 90 81 82 84 64 Engine 4 | . 14 14 11 11 11 11 9 1 . . . 7 . 4 5 5 1 . . . Core 1 | . . . . . . . . 4 7 6 7 2 . 4 5 3 . . . . Reactor 2 | . . . . . . . . . . . . . . . . 1 7 8 8 5 Treads 2 | . 28 28 15 . . . 7 . . . . . . . . . . . . . Leg 6 | . . . 9 33 33 33 13 . . . . . . . . . . . . . Flight 17 | . . . . . . . . 27 30 23 23 31 . 35 35 34 25 20 20 16 Device 10 | . 14 14 15 22 22 20 7 6 6 2 7 5 . 2 . 6 9 10 16 11 Storage 7 | . 14 14 11 11 11 11 9 7 7 7 7 5 . 5 5 5 4 4 4 4 Processor 6 | . . . . . . . 3 7 7 7 7 7 . 8 11 3 7 12 12 9 Hackware 13 | . . . . . . . 5 20 23 23 23 20 . 23 20 21 19 17 16 9 Protection 1 | . . . 5 . . . 6 . . . . . . . . . . 1 4 3 Energy Gun 4 | . 28 28 22 10 11 11 12 . . . . . . 2 5 2 . . . . Launcher 2 | . . . . 11 11 8 3 . 2 . . . . 1 . . . . . . Slashing Weapon 2 | . . . . . . . . 6 4 7 7 3 . 5 5 5 3 . . . Piercing Weapon 1 | . . . . . . . . . . . . 1 . . . . 1 6 4 3 Peak Build Rating 193 | 7 7 7 12 13 14 17 31 52 57 55 45 95 95 106 106 116 137 174 184 193 Average Rating 71 | 5 6 7 9 12 13 14 21 36 54 44 45 78 95 100 102 106 121 162 183 147 On Entrance 61 | . 7 7 7 12 13 14 16 29 51 52 45 45 95 95 106 105 104 137 174 184 Naked Turns 5 | . . . . . . . . . . . . . . . . . . . . 5 Heaviest Build 60 | 13 15 15 24 26 26 28 34 19 24 22 19 35 34 34 34 35 49 55 52 60 Greatest Support 80 | 40 40 40 40 33 33 33 80 28 28 28 19 37 36 36 36 52 62 67 62 68 Greatest Overweight (x) 3 | 1 . . 2 . . . 3 . . . . 1 . . . . . . . 2 Average Overweight (x) . | . . . . . . . 1 . . . . . . . . . . . . . Largest Inventory Capacity 10 | 8 8 8 10 10 10 10 10 10 8 8 8 8 8 8 8 8 8 8 8 8 Average Capacity 8 | 7 8 8 8 10 10 10 10 8 8 8 8 8 8 8 8 8 8 8 8 7 Most Carried 10 | 3 4 4 8 9 9 8 10 9 8 8 8 8 8 8 8 6 8 8 7 7 Average Carried 6 | 1 3 4 5 7 7 8 9 5 7 6 7 7 8 7 8 3 7 7 6 3 Final Capacity 10 | 8 8 8 10 10 10 10 10 8 8 8 8 8 8 8 8 8 8 8 8 5 Final Carried 9 | 3 4 4 8 7 8 8 9 6 7 7 7 8 8 8 8 3 8 8 7 . Class Distribution -------------------- 35% | Hacker-Sprinter 23% | Scavenger-Mutant 16% | Hacker-Scout 10% | Hacker-Mutant 10% | Mutant Dominant Class ---------------- Mutant | -10/Materials Mutant | -10/Mines Mutant | -9/Materials Scavenger-Mutant | -9/Mines Scavenger-Mutant | -9/Exiles Scavenger-Mutant | -8/Mines Scavenger-Mutant | -8/Materials Hacker-Scout | -7/Factory Hacker-Mutant | -7/Storage Hacker-Mutant | -7/Recycling Hacker-Mutant | -7/Scraptown Hacker-Scout | -5/Factory Hacker-Scout | -5/Upper Caves Hacker-Sprinter | -5/Warlord Hacker-Sprinter | -4/Proximity Caves Hacker-Sprinter | -4/Factory Hacker-Sprinter | -3/Research Hacker-Sprinter | -2/Research Hacker-Sprinter | -1/Access Hacker-Sprinter | -1/Command Resources | -11 -10 -10 -9 -9 -9 -8 -8 -7 -7 -7 -7 -5 -5 -5 -4 -4 -3 -2 -1 -1 ----------- Run | Yrd Mat Min Mat Min Exi Min Mat Fac Sto Rec Scr Fac Upp War Pro Fac Res Res Acc Com Matter Collected 2645 | 270 10 . 85 20 . 64 226 433 321 199 . 320 . . 36 164 129 318 20 30 Remotely . | . . . . . . . . . . . . . . . . . . . . . Salvage Created 4659 | 106 118 . 306 83 . 39 477 436 489 114 . 1178 . . 41 499 341 223 32 177 Parts 241 | 8 5 . 15 3 . 4 41 32 22 2 . 45 . . 6 28 14 5 3 8 Haulers Intercepted 24 | . . . 1 . . . 1 4 3 . . 9 . . . 3 2 1 . . Recyclers Shooed 5 | . . . 3 . . . 1 . . . . . . . . 1 . . . . Parts Field Recycled . | . . . . . . . . . . . . . . . . . . . . . Retrieved Matter . | . . . . . . . . . . . . . . . . . . . . . Parts Self-Destructed 4 | . . . . . . . . . . . . . . . 4 . . . . . Prevented . | . . . . . . . . . . . . . . . . . . . . . Kills | -11 -10 -10 -9 -9 -9 -8 -8 -7 -7 -7 -7 -5 -5 -5 -4 -4 -3 -2 -1 -1 ------- Run | Yrd Mat Min Mat Min Exi Min Mat Fac Sto Rec Scr Fac Upp War Pro Fac Res Res Acc Com Combat Hostiles Destroyed 38 | . 3 . 5 2 . 4 10 1 7 . . . . . 4 1 . 1 . . Melee 3 | . . . . . . . . 1 . . . . . . . 1 . 1 . . Guns 12 | . 2 . 4 . . 1 2 . . . . . . . 3 . . . . . AOE 21 | . . . . 2 . 3 8 . 7 . . . . . 1 . . . . . Classes Destroyed 15 | 1 1 . 3 . . 2 5 1 1 . . . . . . . . 1 . . Worker 3 | . . . . . . . 1 1 . . . . . . . 1 . . . . Builder 11 | . . . . . . . 2 2 1 1 . 2 . . . 3 . . . . Tunneler 6 | 5 . . . . . . . . 1 . . . . . . . . . . . Hauler 24 | . . . 1 . . . 1 4 3 . . 9 . . . 3 2 1 . . Recycler 6 | . . . . . . . 2 1 2 1 . . . . . . . . . . Mechanic 1 | . . . . . . . . . 1 . . . . . . . . . . . Operator 6 | . . . . . . . . 1 . . . 3 . . . . 1 . 1 . Watcher 20 | . . . . . . . 3 2 . . . 4 . . . 2 3 2 . 4 Swarmer 10 | . . . . . . 3 3 . . . . . . . 4 . . . . . Grunt 14 | . 3 . 2 2 . . 2 1 4 . . . . . . . . . . . Brawler 1 | . . . . . . . 1 . . . . . . . . . . . . . Duelist 2 | . . . 1 . . . . . 1 . . . . . . . . . . . Sentry 9 | . . . 2 . . . 4 . 2 . . . . . . 1 . . . . Hunter 1 | . . . . . . 1 . . . . . . . . . . . . . . Executioner 1 | . . . . . . . . . . . . . . . . . . 1 . . Best Kill Streak 15 | 4 2 . 2 2 . 3 15 3 12 1 . 5 . . 4 4 1 1 1 2 Combat Bots Only 10 | . 2 . 2 2 . 3 10 1 6 . . . . . 4 1 . 1 . . Max Kills in Single Turn 4 | 1 1 . 1 2 . 2 4 1 2 1 . 1 . . 1 1 1 1 1 1 Gunslinging . | . . . . . . . . . . . . . . . . . . . . . Exploded 3 | . . . . 2 . 2 3 . 2 . . . . . 1 . . . . . Melee 1 | . . . . . . . . 1 . . . . . . . 1 . 1 . . Uniques/NPCs Destroyed . | . . . . . . . . . . . . . . . . . . . . . Combat | -11 -10 -10 -9 -9 -9 -8 -8 -7 -7 -7 -7 -5 -5 -5 -4 -4 -3 -2 -1 -1 -------- Run | Yrd Mat Min Mat Min Exi Min Mat Fac Sto Rec Scr Fac Upp War Pro Fac Res Res Acc Com Hostile Shots Fired 463 | . 14 . 37 8 . 10 55 17 62 18 . . . . 25 21 7 3 . 186 Missed 186 | . 5 . 8 2 . 4 13 9 33 6 . . . . 9 7 6 1 . 83 Damage Taken 6530 | . 103 . 460 60 . 95 573 71 290 291 . . . . 238 341 22 . . 3986 Core 2164 | . 22 . 141 9 . 28 53 11 62 104 . . . . 66 48 . . . 1620 Absorbed by Shields 195 | . . . 32 23 . 39 82 . . 19 . . . . . . . . . . Regen/Repaired (Parts) 39 | . . . . . . . . . 19 . . . . . . 20 . . . . Core Remaining (%) 88 | 100 . 91 . . . 55 90 . . . 74 . . . 93 95 100 100 . . Volleys Fired 139 | 9 12 . 32 3 . 5 34 5 22 . . . . 1 13 1 . 2 . . Largest 2 | 2 2 . 2 2 . 2 2 1 1 . . . . 1 1 1 . 1 . . Hottest 160 | 100 100 . 100 100 . 95 160 30 39 . . . . 100 45 45 . . . . Shots Fired 198 | 18 24 . 58 5 . 8 41 5 22 . . . . 1 13 1 . 2 . . Gun 146 | 18 24 . 58 4 . 3 25 . . . . . . . 13 1 . . . . Cannon 1 | . . . . . . . . . . . . . . 1 . . . . . . Launcher 49 | . . . . 1 . 5 16 5 22 . . . . . . . . . . . Special 2 | . . . . . . . . . . . . . . . . . . 2 . . Kinetic 11 | . . . . . . . 11 . . . . . . . . . . . . . Thermal 121 | 18 24 . 58 4 . 3 14 . . . . . . . . . . . . . Explosive 49 | . . . . 1 . 5 16 5 22 . . . . . . . . . . . Electromagnetic . | . . . . . . . . . . . . . . . . . . . . . Entropic 15 | . . . . . . . . . . . . . . 1 13 1 . . . . Robot Hit Streak 13 | 10 13 . 12 4 . 6 7 . 7 . . . . . 8 4 . 6 . . Robot Miss Streak 9 | 1 1 . 2 1 . 1 9 . . . . . . . 4 . . . . . Penetration Max . | . . . . . . . . . . . . . . . . . . . . . Secondary Targets 1 | . . . 1 . . . . . . . . . . . . . . . . . Max Gunslinging Chain 1 | . . . 1 . . . . . . . . . . . . . . . . . Shots Hit Robots 262 | 14 21 . 39 4 . 5 24 19 9 6 . 33 . . 6 22 17 10 3 30 Core Hits 158 | 5 6 . 13 4 . 5 36 11 32 . . 13 . . 4 9 6 4 1 9 Critical Kills . | . . . . . . . . . . . . . . . . . . . . . Critical Parts Destroyed 1 | . . . . . . . . . . . . . . . 1 . . . . . Critical Strikes 23 | 1 . . 2 . . . . 1 3 1 . 4 . . 1 1 1 1 1 6 Burn 3 | 1 . . 2 . . . . . . . . . . . . . . . . . Sever 10 | . . . . . . . . 1 3 1 . 4 . . . 1 . . . . Impale 9 | . . . . . . . . . . . . . . . . . 1 1 1 6 Detonate 1 | . . . . . . . . . . . . . . . 1 . . . . . Melee Attacks 315 | . . . . . . . 1 53 17 10 . 64 . 5 1 37 29 42 6 50 Impact . | . . . . . . . . . . . . . . . . . . . . . Slashing 193 | . . . . . . . 1 53 17 10 . 45 . 5 1 37 24 . . . Piercing 122 | . . . . . . . . . . . . 19 . . . . 5 42 6 50 Sneak Attacks 39 | . . . . . . . . 8 4 2 . 11 . . . 7 2 3 . 2 Combat Hostiles 1 | . . . . . . . . 1 . . . . . . . . . . . . Follow-up Attacks 5 | . . . . . . . . . . . . . . . . . 1 . . 4 Damage Inflicted 15001 | 171 260 . 513 102 . 319 1126 1330 1801 392 . 2518 . . 349 1723 1094 639 216 2448 Guns 1629 | 171 260 . 513 39 . 33 349 . . . . . . . 232 32 . . . . Cannons . | . . . . . . . . . . . . . . . . . . . . . Explosions 2788 | . . . . 63 . 286 777 99 1207 . . . . . 117 239 . . . . Melee 10560 | . . . . . . . . 1231 594 392 . 2518 . . . 1452 1094 639 216 2424 Ramming 24 | . . . . . . . . . . . . . . . . . . . . 24 Kinetic 131 | . . . . . . . 131 . . . . . . . . . . . . . Thermal 1590 | 171 260 . 513 39 . 33 218 . . . . . . . 117 239 . . . . Explosive 2432 | . . . . 63 . 286 777 99 1207 . . . . . . . . . . . Electromagnetic . | . . . . . . . . . . . . . . . . . . . . . Impact . | . . . . . . . . . . . . . . . . . . . . . Slashing 6663 | . . . . . . . . 1231 594 392 . 2011 . . . 1452 983 . . . Piercing 3897 | . . . . . . . . . . . . 507 . . . . 111 639 216 2424 Entropic 264 | . . . . . . . . . . . . . . . 232 32 . . . . Highest Corruption 30 | . . . 3 3 3 3 . . 1 2 . . . . . . . 4 . 30 Average Corruption 3 | . . . 2 3 3 3 . . 1 1 . . . . . . . 4 . 13 Corruption Purged 2 | . . . . . . . . . . 2 . . . . . . . . . . Corruption Blocked . | . . . . . . . . . . . . . . . . . . . . . Effects 49 | . . . 3 4 5 10 . . 1 . . . . . . . . 16 . 10 Message Errors 13 | . . . . 2 3 4 . . . . . . . . . . . 2 . 2 Matter Fused 8 | . . . . . . 2 . . . . . . . . . . . 3 . 3 Heat Flow Errors 4 | . . . 2 . . . . . . . . . . . . . . 2 . . Energy Discharges 11 | . . . . 2 1 3 . . 1 . . . . . . . . 4 . . Data Loss (minor) 8 | . . . 1 . . 1 . . . . . . . . . . . 3 . 3 Data Loss (major) 3 | . . . . . 1 . . . . . . . . . . . . 1 . 1 Alerts 1 | . . . . . . . . . . . . . . . . . . 1 . . Misdirections 1 | . . . . . . . . . . . . . . . . . . . . 1 Overload Shots . | . . . . . . . . . . . . . . . . . . . . . Overflow Damage 1723 | . . . . . . 10 13 206 46 207 . 619 . . . 235 47 98 67 175 Projectiles . | . . . . . . . . . . . . . . . . . . . . . Explosions 120 | . . . . . . 10 13 12 29 . . . . . . 56 . . . . Melee 1603 | . . . . . . . . 194 17 207 . 619 . . . 179 47 98 67 175 Knockbacks . | . . . . . . . . . . . . . . . . . . . . . Impact . | . . . . . . . . . . . . . . . . . . . . . Kinetic . | . . . . . . . . . . . . . . . . . . . . . Secondary . | . . . . . . . . . . . . . . . . . . . . . Self-Inflicted Damage 138 | . . . . 7 . 76 44 . . . . . . . . . . . . 11 Shots 6 | . . . . 1 . 4 1 . . . . . . . . . . . . . Rammed 4 | . . . . . . . . . . . . . . . . . . . . 4 Targets Rammed 4 | . . . . . . . . . . . . . . . . . . . . 4 Kicked . | . . . . . . . . . . . . . . . . . . . . . Crushed . | . . . . . . . . . . . . . . . . . . . . . Highest Temperature 509 | 312 270 . 509 86 . 81 249 1 46 . . 40 3 54 18 262 244 148 . 207 Average Temperature 68 | 143 108 . 221 50 . 41 79 1 16 . . 8 2 14 7 55 70 46 . 111 Received Heat Transfer 1039 | . 60 . 140 30 . . 182 30 156 . . . . . . 54 . . . 387 Effects 14 | . 1 . 10 . . . . . . . . . . . . . 3 . . . Shutdowns 2 | . . . 2 . . . . . . . . . . . . . . . . . Energy Bleed 1 | . . . 1 . . . . . . . . . . . . . . . . . Interference 5 | . 1 . 1 . . . . . . . . . . . . . 3 . . . Short Circuit 1 | . . . 1 . . . . . . . . . . . . . . . . . Damage (major) 4 | . . . 4 . . . . . . . . . . . . . . . . . Damage (core) 1 | . . . 1 . . . . . . . . . . . . . . . . . Siege Activations . | . . . . . . . . . . . . . . . . . . . . . Robots Corrupted . | . . . . . . . . . . . . . . . . . . . . . Combat Hostiles . | . . . . . . . . . . . . . . . . . . . . . Parts Fried . | . . . . . . . . . . . . . . . . . . . . . Impact Corruptions . | . . . . . . . . . . . . . . . . . . . . . Robots Melted 2 | . 1 . 1 . . . . . . . . . . . . . . . . . Combat Hostiles 2 | . 1 . 1 . . . . . . . . . . . . . . . . . Parts Melted 9 | 4 3 . 2 . . . . . . . . . . . . . . . . . Heat Transferred 3919 | 592 777 . 1665 111 . 74 500 . . . . . . . 50 150 . . . . Parts Sabotaged . | . . . . . . . . . . . . . . . . . . . . . Parts Stolen . | . . . . . . . . . . . . . . . . . . . . . Parts Stripped . | . . . . . . . . . . . . . . . . . . . . . Power Chain Reactions . | . . . . . . . . . . . . . . . . . . . . . Alert | -11 -10 -10 -9 -9 -9 -8 -8 -7 -7 -7 -7 -5 -5 -5 -4 -4 -3 -2 -1 -1 ------- Run | Yrd Mat Min Mat Min Exi Min Mat Fac Sto Rec Scr Fac Upp War Pro Fac Res Res Acc Com Peak Influence 669 | 25 96 37 166 102 . 140 385 318 669 260 . 218 . . . 344 456 127 138 509 Initial 260 | . 16 37 14 64 . . 54 86 87 260 . . . . . 50 188 . 19 88 Average 141 | 12 46 37 88 100 . 37 241 191 335 123 . 76 . . . 194 287 32 85 279 Maximum Alert Level 2 | . . . . . . . 1 1 2 1 . 1 . . . 1 2 . . 2 Low Security (%) 76 | 100 100 100 100 100 . 100 50 64 41 98 . 93 . . . 39 12 100 100 48 Level 1 17 | . . . . . . . 49 35 12 1 . 6 . . . 60 66 . . 15 Level 2 6 | . . . . . . . . . 45 . . . . . . . 20 . . 36 Level 3 . | . . . . . . . . . . . . . . . . . . . . . Level 4 . | . . . . . . . . . . . . . . . . . . . . . Level 5 . | . . . . . . . . . . . . . . . . . . . . . High Security . | . . . . . . . . . . . . . . . . . . . . . Max Security . | . . . . . . . . . . . . . . . . . . . . . Squads Dispatched 37 | . 1 . . . . . 3 5 8 . . 7 . . . 2 4 1 . 6 Investigation 15 | . . . . . . . . 3 2 . . 2 . . . 2 3 1 . 2 Extermination 1 | . . . . . . . . . . . . . . . . . 1 . . . Reinforcement 15 | . 1 . . . . . . 2 4 . . 5 . . . . . . . 3 Assault 3 | . . . . . . . . . 2 . . . . . . . . . . 1 Garrison 3 | . . . . . . . 3 . . . . . . . . . . . . . Intercept . | . . . . . . . . . . . . . . . . . . . . . Searches Triggered . | . . . . . . . . . . . . . . . . . . . . . Construction Impeded . | . . . . . . . . . . . . . . . . . . . . . Haulers Reinforced 6 | . . . . . . . . 2 2 . . 2 . . . . . . . . Active Scanning Responses . | . . . . . . . . . . . . . . . . . . . . . Cargo Convoy Interrupts . | . . . . . . . . . . . . . . . . . . . . . Stealth | -11 -10 -10 -9 -9 -9 -8 -8 -7 -7 -7 -7 -5 -5 -5 -4 -4 -3 -2 -1 -1 --------- Run | Yrd Mat Min Mat Min Exi Min Mat Fac Sto Rec Scr Fac Upp War Pro Fac Res Res Acc Com Distress Signals 14 | . 2 . 1 . . . 1 . 1 1 . 1 . . . . . 6 . 1 Communications Jammed 46 | . . . . . . . . . 1 10 . . . . . 20 2 10 1 2 Distress Signals 44 | . . . . . . . . . . 10 . . . . . 20 2 10 . 2 Times Spotted 159 | . 8 . 7 2 . 4 13 9 13 6 . 9 . . 8 8 13 17 3 39 Peak Tracking Total 22 | . 3 . 4 2 . 3 6 4 6 1 . 2 . . 4 3 3 7 1 22 Tactical Retreats 15 | . . . . . . . . 2 3 . . 1 . . . . 2 3 . 4 Traps | -11 -10 -10 -9 -9 -9 -8 -8 -7 -7 -7 -7 -5 -5 -5 -4 -4 -3 -2 -1 -1 ------- Run | Yrd Mat Min Mat Min Exi Min Mat Fac Sto Rec Scr Fac Upp War Pro Fac Res Res Acc Com Traps Triggered 7 | . . . 2 . . . . . 2 . . 3 . . . . . . . . Indirectly . | . . . . . . . . . . . . . . . . . . . . . Trap Hack Attempts . | . . . . . . . . . . . . . . . . . . . . . Triggered . | . . . . . . . . . . . . . . . . . . . . . Disarmed . | . . . . . . . . . . . . . . . . . . . . . Reprogrammed . | . . . . . . . . . . . . . . . . . . . . . Reused . | . . . . . . . . . . . . . . . . . . . . . Traps Extracted . | . . . . . . . . . . . . . . . . . . . . . Installed . | . . . . . . . . . . . . . . . . . . . . . Triggered 5 | . . . . . . . . . . . . . . 5 . . . . . . Objects Rigged 6 | . . . . . . . . 1 . . . . . . . 5 . . . . Exploded 1 | . . . . . . . . . . . . . . . . 1 . . . . Machines | -11 -10 -10 -9 -9 -9 -8 -8 -7 -7 -7 -7 -5 -5 -5 -4 -4 -3 -2 -1 -1 ---------- Run | Yrd Mat Min Mat Min Exi Min Mat Fac Sto Rec Scr Fac Upp War Pro Fac Res Res Acc Com Machines Disabled 9 | . . . . . . . . 5 2 . . . . 1 . 1 . . . . Max in Single Turn 3 | . . . . . . . . 3 1 . . . . 1 . 1 . . . . Garrison Access 7 | . . . . . . . . 1 . . . 1 . . . 1 2 2 . . Machines Repaired . | . . . . . . . . . . . . . . . . . . . . . Machines Dismantled . | . . . . . . . . . . . . . . . . . . . . . Machines Sabotaged . | . . . . . . . . . . . . . . . . . . . . . Overloaded Fab Kills . | . . . . . . . . . . . . . . . . . . . . . Hacking | -11 -10 -10 -9 -9 -9 -8 -8 -7 -7 -7 -7 -5 -5 -5 -4 -4 -3 -2 -1 -1 --------- Run | Yrd Mat Min Mat Min Exi Min Mat Fac Sto Rec Scr Fac Upp War Pro Fac Res Res Acc Com Machines Accessed 102 | . . . 1 . 2 . 3 24 8 6 . 12 . 5 . 10 10 7 7 7 Terminals 59 | . . . 1 . . . 2 14 6 4 . 6 . . . 5 4 4 7 6 Fabricators 11 | . . . . . . . . 5 . . . 2 . . . 1 2 1 . . Repair Stations 6 | . . . . . . . . . 2 . . . . . . 2 1 . . 1 Recycling Units 7 | . . . . . . . . 1 . 2 . 2 . . . 1 1 . . . Scanalyzers 4 | . . . . . . . . 3 . . . 1 . . . . . . . . Garrison Access 8 | . . . . . . . 1 1 . . . 1 . . . 1 2 2 . . Total Hacks 330 | . . . 3 . 2 . 18 81 20 16 . 45 . 14 . 45 40 16 16 14 Successful 225 | . . . 3 . 2 . 7 56 12 7 . 34 . 14 . 39 20 10 13 8 Failed 105 | . . . . . . . 11 25 8 9 . 11 . . . 6 20 6 3 6 Catastrophic 18 | . . . . . . . 1 3 4 4 . 2 . . . . 1 1 . 2 Database Lockouts . | . . . . . . . . . . . . . . . . . . . . . Manual 188 | . . . 3 . 1 . 14 40 16 11 . 26 . . . 28 24 6 9 10 Terminals 227 | . . . 3 . . . 15 59 18 11 . 31 . . . 28 22 12 16 12 Fabricators 35 | . . . . . . . . 15 . . . 4 . . . 7 7 2 . . Repair Stations 14 | . . . . . . . . . 2 . . . . . . 6 4 . . 2 Recycling Units 19 | . . . . . . . . 3 . 5 . 6 . . . 3 2 . . . Scanalyzers 5 | . . . . . . . . 3 . . . 2 . . . . . . . . Garrison Access 14 | . . . . . . . 3 1 . . . 2 . . . 1 5 2 . . Terminal Hacks 101 | . . . . . 2 . 3 25 6 3 . 13 . 14 . 12 7 7 6 3 Record 11 | . . . . . 1 . . . . . . 1 . 8 . . . . 1 . Part Schematic 21 | . . . . . . . . 11 . 1 . 6 . . . 1 2 . . . Robot Schematic 5 | . . . . . . . . 3 . . . . . . . 1 . 1 . . Robot Analysis 2 | . . . . . . . . . . . . . . . . 2 . . . . Prototype ID Bank 6 | . . . . . . . . 2 . . . . . 4 . . . . . . Open Door 9 | . . . . . . . . . 3 . . . . 2 . . . . 3 1 Level Access Points 4 | . . . . . . . . 1 . . . 1 . . . 1 . 1 . . Branch Access Points 6 | . . . . . . . . 1 1 . . . . . . 1 1 1 1 . Terminal Index 6 | . . . . . . . 1 1 . . . 1 . . . 2 . . 1 . Fabricator Index 2 | . . . . . . . . . . . . 1 . . . 1 . . . . Recycling Unit Index 1 | . . . . . . . . . . 1 . . . . . . . . . . Garrison Index 1 | . . . . . . . . . . . . . . . . . . 1 . . Alert Level 4 | . . . . . . . 1 1 . . . 1 . . . . . 1 . . Unreport Threat 5 | . . . . . . . . . . 1 . . . . . . 4 . . . Locate Traps 2 | . . . . . . . 1 1 . . . . . . . . . . . . Security Status 1 | . . . . . . . . . . . . . . . . . . 1 . . Patrol Status 1 | . . . . . . . . . . . . . . . . 1 . . . . Investigation Status 1 | . . . . . . . . . . . . 1 . . . . . . . . Assault Status 1 | . . . . . . . . . 1 . . . . . . . . . . . Recall Investigation 3 | . . . . . . . . 1 . . . 1 . . . 1 . . . . Recall Assault 1 | . . . . . . . . . 1 . . . . . . . . . . . Hauler Manifests 3 | . . . . . . . . 1 . . . . . . . 1 . 1 . . Registered Components 1 | . . . . . . . . 1 . . . . . . . . . . . . Zone Layout 1 | . . . . . . . . 1 . . . . . . . . . . . . Derelict Proto ID Bank 1 | . . . . . 1 . . . . . . . . . . . . . . . Disengage Seal 2 | . . . . . . . . . . . . . . . . . . . . 2 Fabricator Hacks 19 | . . . . . . . . 7 . . . 4 . . . 3 4 1 . . Network Status 3 | . . . . . . . . 1 . . . . . . . 1 1 . . . Load Schematic 8 | . . . . . . . . 3 . . . 2 . . . 1 2 . . . Build 8 | . . . . . . . . 3 . . . 2 . . . 1 1 1 . . Repair Station Hacks 4 | . . . . . . . . . . . . . . . . 3 1 . . . Scan Component 3 | . . . . . . . . . . . . . . . . 2 1 . . . Repair 1 | . . . . . . . . . . . . . . . . 1 . . . . Recycling Unit Hacks 5 | . . . . . . . . 1 . . . 2 . . . 1 1 . . . Retrieve Components 5 | . . . . . . . . 1 . . . 2 . . . 1 1 . . . Scanalyzer 4 | . . . . . . . . 2 . . . 2 . . . . . . . . Insert Component 4 | . . . . . . . . 2 . . . 2 . . . . . . . . Garrison Access Hacks 7 | . . . . . . . . 1 . . . 1 . . . 1 2 2 . . Seal Access 7 | . . . . . . . . 1 . . . 1 . . . 1 2 2 . . Unauthorized Hacks 85 | . . . 3 . . . 4 20 6 4 . 12 . . . 19 5 . 7 5 Terminals 64 | . . . 3 . . . 4 15 5 2 . 9 . . . 12 3 . 7 4 Track 5 | . . . . . . . . 2 . . . . . . . 2 . . . 1 Assimilate 3 | . . . . . . . . 2 . . . . . . . . . . 1 . Botnet 21 | . . . 1 . . . 2 5 2 . . 3 . . . 2 2 . 2 2 Detonate 3 | . . . . . . . . 1 . . . . . . . 2 . . . . Operators 3 | . . . 1 . . . . . . . . 1 . . . 1 . . . . Skim 29 | . . . 1 . . . 2 5 3 2 . 5 . . . 5 1 . 4 1 Fabricators 9 | . . . . . . . . 4 . . . . . . . 4 1 . . . Report 1 | . . . . . . . . . . . . . . . . 1 . . . . Prioritize 4 | . . . . . . . . 2 . . . . . . . 1 1 . . . Fabnet 1 | . . . . . . . . . . . . . . . . 1 . . . . Haulers 3 | . . . . . . . . 2 . . . . . . . 1 . . . . Repair Stations 3 | . . . . . . . . . 1 . . . . . . 1 . . . 1 Mechanics 2 | . . . . . . . . . . . . . . . . 1 . . . 1 Patch 1 | . . . . . . . . . 1 . . . . . . . . . . . Recycling Units 8 | . . . . . . . . 1 . 2 . 3 . . . 2 . . . . Monitor 2 | . . . . . . . . . . . . 1 . . . 1 . . . . Reject 1 | . . . . . . . . . . . . 1 . . . . . . . . Recyclers 3 | . . . . . . . . 1 . . . 1 . . . 1 . . . . Tunnel 2 | . . . . . . . . . . 2 . . . . . . . . . . Scanalyzers . | . . . . . . . . . . . . . . . . . . . . . Garrison Access 1 | . . . . . . . . . . . . . . . . . 1 . . . Watchers 1 | . . . . . . . . . . . . . . . . . 1 . . . Data Cores Recovered 7 | . . . . . . . . 2 . . . 3 . . . . 1 . 1 . Used 2 | . . . . . . . . 2 . . . . . . . . . . . . Hacking Detections 78 | . . . 1 . . . 3 21 5 6 . 10 . . . 9 10 4 4 5 Full Trace Events 16 | . . . . . . . . 3 1 2 . 2 . . . 2 3 1 . 2 Feedback Events 3 | . . . . . . . . . 1 1 . . . . . . . . . 1 Corruption 2 | . . . . . . . . . 1 1 . . . . . . . . . . Hackware Fried 1 | . . . . . . . . . . . . . . . . . . . . 1 Feedback Blocked . | . . . . . . . . . . . . . . . . . . . . . Robot Schematics Acquired 5 | . . . . . . . . 3 . . . . . . . 1 . 1 . . Robots Built 1 | . . . . . . . . . . . . . . . . . . 1 . . Authchips . | . . . . . . . . . . . . . . . . . . . . . Time 68 | . . . . . . . . . . . . . . . . . . 68 . . Total Robot Build Rating 8 | . . . . . . . . . . . . . . . . . . 8 . . Part Schematics Acquired 20 | . . . . . . . . 10 . 1 . 6 . . . 1 2 . . . Parts Built 9 | . . . . . . . . 5 . . . 2 . . . 1 1 . . . Authchips . | . . . . . . . . . . . . . . . . . . . . . Time 344 | . . . . . . . . 172 . . . 66 . . . 53 53 . . . Total Part Build Rating 54 | . . . . . . . . 31 . . . 11 . . . 6 6 . . . Parts Repaired 1 | . . . . . . . . . . . . . . . . 1 . . . . Time 44 | . . . . . . . . . . . . . . . . 44 . . . . Parts Recycled . | . . . . . . . . . . . . . . . . . . . . . Recycled Matter . | . . . . . . . . . . . . . . . . . . . . . Retrieved Matter . | . . . . . . . . . . . . . . . . . . . . . Retrieved Components 14 | . . . . . . . . . . . . 8 . . . 3 3 . . . Parts Scanalyzed . | . . . . . . . . . . . . . . . . . . . . . Part Schematics Acquired . | . . . . . . . . . . . . . . . . . . . . . Parts Damaged . | . . . . . . . . . . . . . . . . . . . . . Bothacking | -11 -10 -10 -9 -9 -9 -8 -8 -7 -7 -7 -7 -5 -5 -5 -4 -4 -3 -2 -1 -1 ------------ Run | Yrd Mat Min Mat Min Exi Min Mat Fac Sto Rec Scr Fac Upp War Pro Fac Res Res Acc Com Used RIF Installer . | . . . . . . . . . . . . . . . . . . . . . Robots Hacked . | . . . . . . . . . . . . . . . . . . . . . Non-combat . | . . . . . . . . . . . . . . . . . . . . . Combat . | . . . . . . . . . . . . . . . . . . . . . Robot Hacks Applied . | . . . . . . . . . . . . . . . . . . . . . Relay Couplers Released . | . . . . . . . . . . . . . . . . . . . . . Fabnet Peak Effective % 3 | . . . . . . . . . . . . . . . . . 3 1 . . Robots Rewired 15 | . . . . . . . . 1 . 9 . . . 5 . . . . . . Allies Hacked . | . . . . . . . . . . . . . . . . . . . . . Hacks Repelled . | . . . . . . . . . . . . . . . . . . . . . Allies | -11 -10 -10 -9 -9 -9 -8 -8 -7 -7 -7 -7 -5 -5 -5 -4 -4 -3 -2 -1 -1 -------- Run | Yrd Mat Min Mat Min Exi Min Mat Fac Sto Rec Scr Fac Upp War Pro Fac Res Res Acc Com Total Allies 21 | . . . . . . . . 3 2 9 . . . 5 . . . 1 1 . Largest Group 9 | . . . . . . . . 2 2 9 1 1 . 5 . . . 1 1 1 Highest-Rated Group 257 | . . . . . . . . 31 62 257 39 39 . 207 . . . 49 45 45 Highest-Rated Ally 49 | . . . . . . . . 26 31 40 39 39 . 43 . . . 49 45 45 Total Orders . | . . . . . . . . . . . . . . . . . . . . . Ally Attacks 44 | . . . . . . . . 3 20 21 . . . . . . . . . . Total Damage 1102 | . . . . . . . . 57 297 748 . . . . . . . . . . Kills 8 | . . . . . . . . 1 2 5 . . . . . . . . . . Allies Corrupted . | . . . . . . . . . . . . . . . . . . . . . Allies Melted . | . . . . . . . . . . . . . . . . . . . . . Intel | -11 -10 -10 -9 -9 -9 -8 -8 -7 -7 -7 -7 -5 -5 -5 -4 -4 -3 -2 -1 -1 ------- Run | Yrd Mat Min Mat Min Exi Min Mat Fac Sto Rec Scr Fac Upp War Pro Fac Res Res Acc Com Robot Analysis Total 2 | . . . . . . . . . . . . . . . . 2 . . . . Derelict Logs Recovered 2 | . . . . 1 . . . . . . . . . . 1 . . . . . Drone Launches . | . . . . . . . . . . . . . . . . . . . . . Drone Recoveries . | . . . . . . . . . . . . . . . . . . . . . Exploration | -11 -10 -10 -9 -9 -9 -8 -8 -7 -7 -7 -7 -5 -5 -5 -4 -4 -3 -2 -1 -1 ------------- Run | Yrd Mat Min Mat Min Exi Min Mat Fac Sto Rec Scr Fac Upp War Pro Fac Res Res Acc Com Turns Passed 7929 | 154 248 35 312 272 301 704 554 875 344 437 236 640 6 234 97 289 403 1059 137 592 Spaces Moved 13436 | 70 87 20 132 193 249 513 323 1812 475 602 588 1572 20 799 321 701 1039 2534 328 1058 Core 5 | 3 . . . . . . . . . . . . . . . . . . . 2 Treads 319 | 67 87 20 86 . . . 59 . . . . . . . . . . . . . Legs 1084 | . . . 38 193 249 513 91 . . . . . . . . . . . . . Wheels 181 | . . . 8 . . . 173 . . . . . . . . . . . . . Hover . | . . . . . . . . . . . . . . . . . . . . . Flight 11847 | . . . . . . . . 1812 475 602 588 1572 20 799 321 701 1039 2534 328 1056 Fastest Speed 17 | 50 160 160 110 120 120 120 110 28 33 35 35 20 20 20 20 17 19 19 27 18 Average Speed 39 | 156 160 160 146 120 120 120 128 31 35 35 35 22 20 20 20 17 25 28 27 27 Slowest Speed 240 | 160 160 160 240 120 120 120 190 36 36 39 35 97 20 20 20 20 33 33 27 150 Overloaded Moves 55 | . . . . . . . . . . . . . . . . . . 5 . 50 Propulsion Burnouts . | . . . . . . . . . . . . . . . . . . . . . Robots Hopped 75 | . . . . . . . . 15 14 5 . 8 . 1 . 4 7 10 . 11 Cave-ins Triggered . | . . . . . . . . . . . . . . . . . . . . . Exploration Rate (%) 42 | 4 20 9 16 49 62 90 39 51 59 93 51 45 5 93 51 22 36 51 10 41 Regions Visited 20 Branch Regions 11 Pre-discovered Areas 5 | . . . . . 1 . . 2 . 2 . . . . . . . . . . Known Exits Taken 8 | . . . . . . . 1 1 1 . 1 . . . 1 1 . 1 1 . Unknown Exits Taken 12 | 1 1 1 1 1 1 1 . . . 1 . 1 1 1 . . 1 . . . Scrap Searched 8 | . . . . . . 2 . . . . 3 . . . 3 . . . . . Spaces Dug 118 | . . . . . . . 1 25 6 4 . 17 . . 5 13 9 21 1 16 Terrain Destroyed 486 | . . . . 8 . 45 77 32 186 4 . 17 . . 28 42 9 21 1 16 Melee 114 | . . . . . . . 1 25 6 4 . 17 . . 1 13 9 21 1 16 Projectile 26 | . . . . . . . . . . . . . . . 23 3 . . . . AOE 346 | . . . . 8 . 45 76 7 180 . . . . . 4 26 . . . . Terrain Rammed . | . . . . . . . . . . . . . . . . . . . . . Walls Destroyed . | . . . . . . . . . . . . . . . . . . . . . Machines Disabled . | . . . . . . . . . . . . . . . . . . . . . Actions | -11 -10 -10 -9 -9 -9 -8 -8 -7 -7 -7 -7 -5 -5 -5 -4 -4 -3 -2 -1 -1 --------- Run | Yrd Mat Min Mat Min Exi Min Mat Fac Sto Rec Scr Fac Upp War Pro Fac Res Res Acc Com Total 15272 | 93 172 23 193 229 251 593 419 2009 578 801 619 1740 21 864 337 800 1121 2804 362 1243 Wait 956 | 5 71 4 7 29 . 71 6 89 63 129 26 11 2 31 2 49 31 181 26 123 Move 13283 | 69 86 19 131 192 248 512 322 1783 451 592 587 1555 19 796 320 693 1024 2516 327 1041 Hop 58 | . . . . . . . . 13 9 4 . 8 . 1 . 3 7 7 . 6 Pick Up 69 | 3 1 . 6 2 2 . 14 12 1 4 3 9 . . . . 5 6 1 . Fast Attach 110 | 7 1 . 5 . . 2 14 12 4 1 . 23 . 8 1 6 11 14 . 1 Attach 45 | . . . 3 2 . . 5 8 1 4 . 3 . 1 . 3 . 5 2 8 Detach 23 | . . . 1 . . . 2 3 3 . . 2 . 3 . . 1 7 . 1 Swap 33 | . . . 2 . . 1 3 3 2 2 . 5 . . . 3 2 10 . . Drop 141 | . 1 . 6 1 1 2 18 27 5 2 3 24 . 8 . 5 13 20 . 5 Fire 139 | 9 12 . 32 3 . 5 34 5 22 . . . . 1 13 1 . 2 . . Melee 303 | . . . . . . . 1 53 17 10 . 64 . 5 1 37 27 36 6 46 Ram 4 | . . . . . . . . . . . . . . . . . . . . 4 Kick . | . . . . . . . . . . . . . . . . . . . . . Crush . | . . . . . . . . . . . . . . . . . . . . . Escape Stasis 36 | . . . . . . . . . . . . 36 . . . . . . . . Rewire 64 | . . . . . . . . 1 . 53 . . . 10 . . . . . . Trap . | . . . . . . . . . . . . . . . . . . . . . Miscellaneous 8 | . . . . . . . . . . . . . . . . . . . . 8 Route ------- -11/Scrapyard -10/Materials -10/Mines -9/Materials -9/Mines -9/Exiles -8/Mines -8/Materials (discovered 2 exits: *Fac x2) -7/Factory (discovered 7 exits: *Fac x4 / *Sto / *Low x2) -7/Storage (discovered 2 exits: Fac / *Rec) -7/Recycling (discovered 2 exits: *Fac / [*Scr]) -7/Scraptown (discovered 2 exits: *Fac x2) -5/Factory (discovered 5 exits: *Fac x4 / [*Upp]) -5/Upper Caves -5/Warlord -4/Proximity Caves -4/Factory (discovered 6 exits: *Res x4 / *Upp x2) -3/Research (discovered 4 exits: *Res / Arm / Tes x2) -2/Research (discovered 5 exits: *Acc x3 / Qua x2) -1/Access -1/Command History --------- Turn | Location | Event 28 | -11/Scrapyard | Discovered new exit (range 16) 155 | -11/Scrapyard | Entered Materials 317 | -10/Materials | Build established: Mutant 381 | -10/Materials | Discovered new exit (range 9) 403 | -10/Materials | Entered Mines 419 | -10/Mines | Discovered new exit (range 8) 438 | -10/Mines | Entered Materials 438 | -9/Materials | Evolved 2 slots: Propulsion x1, Utility x1 715 | -9/Materials | Discovered new exit (range 7) 750 | -9/Materials | Entered Mines 777 | -9/Mines | Learned 2 Materials zone layouts 886 | -9/Mines | Met a Derelict bent on vengeance 903 | -9/Mines | Build established: Scavenger-Mutant 1016 | -9/Mines | Deemed a non-threat by the Exiles lab entrance 1018 | -9/Mines | Discovered new exit (range 5) 1022 | -9/Mines | Entered Exiles 1050 | -9/Exiles | Met 8R-AWN 1073 | -9/Exiles | Met EX-HEX 1135 | -9/Exiles | Met EX-BIN 1148 | -9/Exiles | Aligned with FarCom system 1150 | -9/Exiles | Given EX-Vault access code 1177 | -9/Exiles | Opened EX-Vault 1184 | -9/Exiles | Found Superbattery 1213 | -9/Exiles | Warned to stay clear of 0b10 Research branches 1244 | -9/Exiles | Met EX-DEC 1250 | -9/Exiles | Learned location of Zion (-7) 1308 | -9/Exiles | Discovered new exit (range 14) 1323 | -9/Exiles | Left Exiles lab with Superbattery 1323 | -9/Exiles | Entered Mines 1916 | -8/Mines | Discovered new exit (range 5) 2027 | -8/Mines | Entered Materials 2027 | -8/Materials | Evolved 2 slots: Propulsion x1, Utility x1 2028 | -8/Materials | Identified exit to Factory 2223 | -8/Materials | Destroyed 10 combat bots 2228 | -8/Materials | Lost 5 parts (1p3n1u) 2488 | -8/Materials | Discovered exit to Factory (range 15) 2581 | -8/Materials | Entered Factory 2581 | -7/Factory | Evolved 2 slots: Utility x2 2762 | -7/Factory | Identified exit to Storage 2762 | -7/Factory | Identified exit to Lower Caves 2769 | -7/Factory | Discovered new exit (range 4) 2780 | -7/Factory | Discovered new exit (range 5) 2840 | -7/Factory | Fabricated Hvy. Antimatter Reactor? 2892 | -7/Factory | Identified exit to Factory 2948 | -7/Factory | Learned 4 Extension zone layouts 2988 | -7/Factory | Build established: Hacker-Scout 2992 | -7/Factory | Learned location of 1 exit from Hub_04(d) 3024 | -7/Factory | Learned 4 Extension zone layouts 3045 | -7/Factory | Learned Extension terminal intel 3054 | -7/Factory | Learned location of 1 exit from Cetus 3055 | -7/Factory | Learned location of Proximity Caves (-3) 3056 | -7/Factory | Learned location of 1 exit from Proximity Caves 3059 | -7/Factory | Fabricated Field Propulsion Drive (x2) 3063 | -7/Factory | Learned location of Upper Caves (-5) 3081 | -7/Factory | Learned 2 Lower Caves zone layouts 3137 | -7/Factory | Fabricated Field Propulsion Drive (x2) 3456 | -7/Factory | Entered Storage 3460 | -7/Storage | Met a pair of Derelict thieves 3561 | -7/Storage | Found Prototype Launcher 3561 | -7/Storage | Identified Gui. Missile Launcher 3579 | -7/Storage | Identified exit to Recycling 3798 | -7/Storage | Used back door to open Recycling access 3800 | -7/Storage | Entered Recycling 3801 | -7/Recycling | Identified exit to Factory 4010 | -7/Recycling | Found Powered Armor 4134 | -7/Recycling | Scanned before Scraplab entrance 4164 | -7/Recycling | Discovered new exit (range 11) 4165 | -7/Recycling | Entered Scraplab 4193 | -7/Recycling | Lost 3 allies 4237 | -7/Recycling | Entered Scraptown 4237 | -7/Scraptown | Accompanied by 1 ally 4279 | -7/Scraptown | Visited CPS Storage 4293 | -7/Scraptown | Visited Spacefarers 4362 | -7/Scraptown | Visited Comm Corps 4365 | -7/Scraptown | Visited Red Mages 4377 | -7/Scraptown | Visited SPCMW 4393 | -7/Scraptown | Turned away by UFD registrar 4418 | -7/Scraptown | Visited Symbiants 4426 | -7/Scraptown | Visited TADAMA 4473 | -7/Scraptown | Entered Factory 4473 | -5/Factory | Accompanied by 1 ally 4473 | -5/Factory | Evolved 4 slots: Power x1, Propulsion x2, Utility x1 4668 | -5/Factory | Fabricated Imp. Hacking Suite (x1) 4976 | -5/Factory | Discovered new exit (range 10) 4987 | -5/Factory | Identified exit to Factory 5041 | -5/Factory | Fabricated Adv. Hacking Suite? 5092 | -5/Factory | Discovered new exit (range 3) 5113 | -5/Factory | Entered Upper Caves 5119 | -5/Upper Caves | A Derelict revealed a hidden shortcut to "reach the base" 5119 | -5/Upper Caves | Entered Warlord 5154 | -5/Warlord | Met Warlord 5174 | -5/Warlord | Visited the Vortex Lab 5175 | -5/Warlord | Found Prototype Energy Cannon 5175 | -5/Warlord | Identified Vortex Driver 5179 | -5/Warlord | Warlord's base attacked by MAIN.C 5199 | -5/Warlord | Found Prototype Reactor 5199 | -5/Warlord | Identified Vortex Chain Reactor 5208 | -5/Warlord | Found Prototype Device 5208 | -5/Warlord | Identified System Purifier 5211 | -5/Warlord | Found Prototype Processor 5211 | -5/Warlord | Identified Exp. Target Analyzer 5226 | -5/Warlord | Found Prototype Energy Gun 5226 | -5/Warlord | Identified Vortex Rail 5347 | -5/Warlord | Opened side exit 5351 | -5/Warlord | Discovered new exit (range 11) 5353 | -5/Warlord | Entered Proximity Caves 5412 | -4/Proximity Caves | Spotted B-86 Titan 5435 | -4/Proximity Caves | Learned Research trap positions 5450 | -4/Proximity Caves | Entered Factory 5450 | -4/Factory | Evolved 2 slots: Propulsion x2 5451 | -4/Factory | Identified exit to Research 5453 | -4/Factory | Identified exit to Upper Caves 5511 | -4/Factory | Repaired Cld. Nuclear Pulse Thruster 5599 | -4/Factory | Build established: Hacker-Sprinter 5601 | -4/Factory | Fabricated Adv. Hacking Suite (x1) 5672 | -4/Factory | Lost 3 parts (1n1u1w) 5739 | -4/Factory | Entered Research 5739 | -3/Research | Evolved 2 slots: Utility x2 5740 | -3/Research | Loaded intel: 67 trap records 5772 | -3/Research | Found Prototype Device 5772 | -3/Research | Identified Exp. Focal Shield 6001 | -3/Research | Identified exit to Armory 6001 | -3/Research | Identified exit to Testing 6084 | -3/Research | Fabricated Adv. Hacking Suite? 6124 | -3/Research | Discovered new exit (range 9) 6142 | -3/Research | Entered another Research area 6142 | -2/Research | Warlord forces began assault on 0b10 6142 | -2/Research | Evolved 2 slots: Utility x2 6152 | -2/Research | Identified exit to Access 6226 | -2/Research | Found Prototype Processor 6226 | -2/Research | Identified Exp. Core Analyzer 6228 | -2/Research | Identified exit to Quarantine 6252 | -2/Research | Research machine network offline 6263 | -2/Research | Fabricated C-55 Analyst? 6493 | -2/Research | Spotted B-90 Cyclops 6515 | -2/Research | Borebot progress halted 6554 | -2/Research | Met up with Warlord 6557 | -2/Research | Borebot progress halted 6568 | -2/Research | Borebot progress halted 6578 | -2/Research | Found Prototype Device 6578 | -2/Research | Identified Exp. Transmission Jammer 6607 | -2/Research | Found Prototype Device 6607 | -2/Research | Identified Exp. Thermal Shield 6660 | -2/Research | Found Exp. System Shield 6707 | -2/Research | Spotted Striker 6711 | -2/Research | Spotted Striker 6750 | -2/Research | Spotted Striker 6866 | -2/Research | Spotted 2C-QIT(L) 6931 | -2/Research | Spotted Striker 7090 | -2/Research | Spotted Executioner 7090 | -2/Research | Spotted Executioner 7098 | -2/Research | Destroyed Executioner 7142 | -2/Research | Warlord invited to help at Command 7145 | -2/Research | Met DD-05H 7201 | -2/Research | Entered Access 7201 | -1/Access | Evolved 2 slots: Utility x2 7237 | -1/Access | Identified exit to Command 7338 | -1/Access | Entered Command 7338 | -1/Command | Accompanied by 1 ally 7346 | -1/Command | Exp. System Shield fried by hacking feedback 7374 | -1/Command | Disengaged cave seal 7374 | -1/Command | Derelicts emerged from the dark tunnel 7374 | -1/Command | Welcomed Warlord to Command 7490 | -1/Command | Lost 4 allies 7588 | -1/Command | First assault squad dispatched 7613 | -1/Command | Disengaged cave seal 7613 | -1/Command | Derelicts emerged from the dark tunnel 7682 | -1/Command | Spotted M Guard 7682 | -1/Command | Spotted M Guard 7683 | -1/Command | Spotted Combat Programmer 7683 | -1/Command | Spotted Combat Programmer 7689 | -1/Command | Met MAIN.C 7694 | -1/Command | 0b10 Conduit disabled 7762 | -1/Command | System corruption reached 10% 7818 | -1/Command | Core integrity fell below 50% 7852 | -1/Command | Lost 19 parts (2p4n10u3w) 7929 | -1/Command | Core integrity fell below 20% 7930 | -1/Command | System corruption reached 30% 7930 | -1/Command | Destroyed by M Guard with Graviton Cannon Last Messages --------------- 07831_ I4CPGKV5MQB 07922_ Stasis Canceller destroyed. 07923_ Penetrated by EMDS Slug. 07925_ Slug penetrates H-88 Terminator. 07925_ Penetrated by Slug. 07925_ Superbattery destroyed. 07925_ Penetrated by EMDS Slug. 07925_ Impulse Thruster Array destroyed. 07925_ Adv. Melee Analysis Suite destroyed. 07926_ Slammed into MAIN.C. 07927_ Destabilizing: System corrupted (+2). 07927_ Penetrated by EMDS Slug. 07928_ Knocked back. 07928_ Penetrated by Slug. 07929_ Slammed into MAIN.C. 07930_ System corrupted: Component data lost. 07930_ Slammed into MAIN.C. Map ----- +----------------------------------------------------+ | ?????????????????????????????????????????????????? | | ?????????????????????????????????????????????????? | | ?????????????????????????????????????????????????? | | ?????????????????????????????????????????????????? | | ?????????????????????????????????????????????????? | | ?????????????????????????????????????????????????? | | ?????????????????????????????????????????????????? | | ?????????????????????????????????????????????????? | | ?????????????????????????????????????????????????? | | ?????????????????????????????????????????????????? | | ?????????????????????????????????????????????????? | | ????????????????#######################??????????? | | ????????????????#""""""" """" #??????????? | | ????????????????#"" "" #??????????? | | ????????????????#""""" "" ############ | | ????????????????#"" """""""" / | | ????????????????#" " """ / | | ????????????????#" """""" / | | ????????????????#"" """""" ############ | | ????????????????# " """" #??????????? | | ????????????????# " "" #??????????? | | ????????????????# " " ""#??????????? | | ????????????????#""""" MMMp """""""#??????????? | | ????????????????#"" MMM Y"""""""""#??????????? | | ????????????????# MMM Y"""""""""#??????????? | | ????????????????# %@h% " " #??????????? | | ????????????????# h% " " #??????????? | | ????????????????" p " """" " ???????????? | | ????????????????" " " ""??????????????? | | ????????????????" " " " ?????????????? | | ????????????????# "" """ " ?????????????? | | ????????????????# " " """""""????????????? | | ????????????????# "" " " " ????????????? | | ????????????????##################???????????????? | | ?????????????????????????????????????????????????? | | ?????????????????????????????????????????????????? | | ?????????????????????????????????????????????????? | | ?????????????????????????????????????????????????? | | ?????????????????????????????????????????????????? | | ?????????????????????????????????????????????????? | | ?????????????????????????????????????????????????? | | ?????????????????????????????????????????????????? | | ?????????????????????????????????????????????????? | | ?????????????????????????????????????????????????? | | ?????????????????????????????????????????????????? | | ?????????????????????????????????????????????????? | | ?????????????????????????????????????????????????? | | ?????????????????????????????????????????????????? | | ?????????????????????????????????????????????????? | | ?????????????????????????????????????????????????? | +----------------------------------------------------+ Best States ------------- Heat Dissipation 52 Energy Generation 55 Energy Capacity 1780 Matter Stores 300 Matter Capacity 300 Sight Range 18 Terrain Scan Density 10 ECM Strength 1 Jamming Range 22 Cloak Strength 4 Armor Coverage 300 Melee Speed Boost 30 Phase Shifting 15 Evasion (%) 93 Melee Accuracy 16 Target Analysis 10 Core Analysis 8 Recoil Reduction 4 Offensive Hacking 42 Defensive Hacking 16 Authchip Count 1 Item Schematics ----------------- Field Propulsion Drive | -7/Factory | Hacked Hacking Suite | -7/Factory | Hacked System Shield | -7/Factory | Hacked Structural Scanner | -7/Factory | Hacked Mic. Nuclear Core | -7/Factory | Hacked Cld. VTOL Module | -7/Factory | Hacked Phase Cannon | -7/Factory | Hacked Adv. Plasma Cannon | -7/Factory | Hacked Imp. Hacking Suite | -7/Factory | Hacked Hvy. Flak Cannon | -7/Factory | Hacked Lyr. Light Armor Plating | -7/Recycling | Hacked Adv. Hacking Suite | -5/Factory | Hacked Adv. System Shield | -5/Factory | Hacked Imp. Surge Thruster | -5/Factory | Hacked Impulse Thruster Array | -5/Factory | Hacked Biometal Leg | -5/Factory | Hacked Adv. Particle Charger | -5/Factory | Hacked Exp. Gyrokinetic Inverter | -4/Factory | Hacked Exp. Hacking Suite | -3/Research | Hacked Exp. System Shield | -3/Research | Hacked Robot Schematics ------------------ G-47 Trooper | -7/Factory | Hacked A-02 Transporter | -7/Factory | Hacked R-06 Scavenger | -7/Factory | Hacked M-30 Cleanser | -4/Factory | Hacked A-15 Conveyor | -2/Research | Hacked Fabricated ------------ Hvy. Antimatter Reactor | x1 | -7/Factory | Preloaded Field Propulsion Drive | x2 | -7/Factory Field Propulsion Drive | x2 | -7/Factory Imp. Hacking Suite | x1 | -5/Factory Adv. Hacking Suite | x1 | -5/Factory Adv. Hacking Suite | x1 | -4/Factory Adv. Hacking Suite | x1 | -3/Research C-55 Analyst | x1 | -2/Research | Preloaded Alien Tech Used ----------------- None Achievements -------------- Treasure Hunter Challenges ------------ None Game ------ Seed AlphaSpreadRail Manual? 0 Play Time 02:56:09 Cumulative 340.5 hours Start 2024.09.07 @ 23:41:01 End 2024.09.08 @ 13:21:40 Sessions 3 Manual Loads 0 Difficulty Rogue Special Mode None Game No. 345 Rogue 340 Adventurer 5 Explorer 0 Win Type - Total 5 Types 4/0/0/1/0/0/0/0/0 Lore% 77 Gallery% 83 Achievement% 68 Wizard Run 0 Options --------- Layout 1 ASCII 0 Keyboard 0 Movement Arrows Keybinds 0 Fullscreen 1 Font 24/Terminus Map View 50x35 Zoom Use 0% Tactical HUD 1 Map Filters NONE Filters NONE Steam 1 RUN: 5713f8e5-5e04-43a1-8f14-13a8268f8e73